fUST/lending_fUST_20240711
["ID","MTS","AMOUNT","RATE_DAILY","PERIOD"]
[331684891,1720637439200,-500.0,0.00028758,2]
[331684893,1720637439210,-203.49205999,0.00028758,2]
[331684895,1720637439220,-500.0,0.00028758,2]
[331684897,1720637439231,-265.37751026,0.00028758,2]
[331684899,1720637439242,-500.0,0.00028758,2]
[331684900,1720637439252,-500.0,0.00028758,2]
[331684901,1720637439262,-500.0,0.00028758,2]
[331684902,1720637439271,-500.0,0.00028758,2]
[331684903,1720637439280,-500.0,0.00028758,2]
[331684904,1720637439290,-500.0,0.00028758,2]
[331684905,1720637439300,-500.0,0.00028758,2]
[331684907,1720637439310,-500.0,0.00028758,2]
[331684909,1720637439319,-500.0,0.00028758,2]
[331684911,1720637439329,-500.0,0.00028758,2]
[331684913,1720637439339,-500.0,0.00028758,2]
[331684915,1720637439349,-500.0,0.00028758,2]
[331684917,1720637439358,-500.0,0.00028758,2]
[331684919,1720637439368,-500.0,0.00028758,2]
[331684921,1720637439377,-500.0,0.00028758,2]
[331684923,1720637439387,-500.0,0.00028758,2]
[331684925,1720637439397,-230.73715379,0.00028758,2]
[331684927,1720637439410,-500.0,0.00028758,2]
[331684929,1720637439420,-500.0,0.00028758,2]
[331684931,1720637439430,-500.0,0.00028758,2]
[331684933,1720637439440,-500.0,0.00028758,2]
[331684935,1720637439450,-500.0,0.00028758,2]
[331684936,1720637439460,-500.0,0.00028758,2]
[331684937,1720637439469,-500.0,0.00028758,2]
[331684938,1720637439479,-6597.44963221,0.00028758,5]
[331684939,1720637439489,-71084.2594463,0.00028759,3]
[331684940,1720637439499,-150.5,0.0002876,62]
[331684941,1720637439508,-29244.07328924,0.0002876,3]
[331685004,1720637441004,-112924.44560376,0.0002876,3]
[331685005,1720637441014,-102240.77019549,0.0002877,2]
[331685007,1720637441025,-311.20545213,0.0002877,2]
[331685008,1720637441036,-4250.73654338,0.0002877,2]
[331685009,1720637441047,-389.07306561,0.0002877,2]
[331685021,1720637443957,-17488.95063516,0.0002877,2]
[331685022,1720637443967,-453.22022894,0.00029,2]
[331685023,1720637443977,-849.45020334,0.00029,2]
[331685024,1720637443987,-783.70298607,0.00029696,2]
[331685025,1720637443998,-4700.35928989,0.00029765,2]
[331685026,1720637444008,-156.3,0.00029803,2]
[331685027,1720637444017,-154.54409492,0.00029823,2]
[331685028,1720637444027,-154.54409492,0.0002987,2]
[331685029,1720637444036,-439.96223583,0.00029879,2]
[331685030,1720637444046,-155.43553926,0.00029901,2]
[331685031,1720637444055,-155.43553926,0.00029901,2]
[331685032,1720637444066,-599.14160025,0.00029901,2]
[331685033,1720637444076,-431.12938208,0.00029971,2]
[331685034,1720637444086,-240.12803383,0.00029979,2]
[331685035,1720637444095,-3179.71163492,0.00029979,2]
[331685036,1720637444104,-170.47875529,0.0003,4]
[331685037,1720637444113,-471.68236775,0.0003,4]
[331685038,1720637444123,-8550.96884589,0.0003,5]
[331685039,1720637444132,-201.97578118,0.0003,4]
[331685040,1720637444142,-440.41891497,0.00030229,4]
[331685041,1720637444152,-783.70298607,0.00030723,2]
[331685042,1720637444161,-2000.0,0.00030946,4]
[331685043,1720637444171,-254.28976292,0.00030946,4]
[331685044,1720637444180,-783.70298607,0.00031749,2]
[331685045,1720637444190,-500.38242698,0.00032,30]
[331685046,1720637444199,-151.0,0.00032041,4]
[331685047,1720637444210,-280.52091117,0.00032272,4]
[331685048,1720637444219,-395.53619326,0.00032655,2]
[331685049,1720637444229,-783.70298607,0.00032776,2]
[331685050,1720637444239,-160.0,0.00032812,3]
[331685051,1720637444248,-150.0,0.00032815,2]
[331685052,1720637444258,-728.15901358,0.00032815,2]
[331685053,1720637444318,-0.00240969,0.00032815,2]
[331685054,1720637444373,-677.83857673,0.00032815,2]
[331685055,1720637444383,-233.218,0.00032815,2]
[331685056,1720637444392,-164.371,0.00032815,2]
[331685057,1720637444402,-263.28961001,0.00032875,2]
[331685058,1720637444411,-155.74156135,0.00032875,2]
[331685059,1720637444421,-500.0,0.00032875,2]
[331685060,1720637444430,-154.74147722,0.00032875,2]
[331685061,1720637444439,-500.0,0.00032875,2]
[331685062,1720637444449,-414.18440376,0.00032875,2]
[331685063,1720637444460,-450.78055993,0.00032875,2]
[331685064,1720637444469,-500.0,0.00032875,2]
[331685065,1720637444479,-500.0,0.00032875,2]
[331685066,1720637444490,-500.0,0.00032875,2]
[331685067,1720637444499,-500.0,0.00032875,2]
[331685068,1720637444508,-500.0,0.00032875,2]
[331685069,1720637444517,-500.0,0.00032875,2]
[331685070,1720637444526,-500.0,0.00032875,2]
[331685071,1720637444535,-478.4029357,0.00032875,2]
[331685072,1720637444547,-21.5970643,0.00032875,2]
[331685073,1720637444556,-291.9319446,0.00032875,2]
[331685074,1720637444568,-208.0680554,0.00032875,2]
[331685075,1720637444578,-94.13865247,0.00032875,2]
[331685076,1720637444590,-405.86134753,0.00032875,2]
[331685077,1720637444599,-328.28702885,0.00032875,2]
[331685078,1720637444609,-500.0,0.00032875,2]
[331685079,1720637444619,-184.302727,0.00032875,2]
[331685080,1720637444628,-500.0,0.00032875,2]
[331685081,1720637444638,-500.0,0.00032876,7]
[331685082,1720637444648,-500.0,0.00032876,7]
[331685083,1720637444657,-500.0,0.00032876,7]
[331685084,1720637444667,-500.0,0.00032876,7]
[331685085,1720637444676,-3.97724715,0.00032876,7]
[331685086,1720637444688,-550.27275285,0.00032876,7]
[331685087,1720637444698,-500.0,0.00032876,7]
[331685088,1720637444708,-358.22721715,0.00032876,7]
[331685089,1720637444721,-141.77278285,0.00032876,7]
[331685090,1720637444730,-500.0,0.00032876,7]
[331685091,1720637444740,-500.0,0.00032876,7]
[331685092,1720637444749,-478.72473548,0.00032876,7]
[331685093,1720637444759,-500.0,0.00032876,7]
[331685094,1720637444768,-1757.14,0.00032876,4]
[331685095,1720637444778,-500.0,0.00032876,2]
[331685096,1720637444787,-562.97,0.00032876,7]
[331685097,1720637444797,-500.0,0.00032876,7]
[331685098,1720637444806,-500.0,0.00032876,7]
[331685099,1720637444816,-500.0,0.00032876,7]
[331685100,1720637444825,-500.0,0.00032876,2]
[331685101,1720637444834,-500.0,0.00032876,2]
[331685102,1720637444843,-519.63507875,0.00032876,7]
[331685103,1720637444853,-500.0,0.00032876,7]
[331685104,1720637444863,-153.0,0.00032876,2]
[331685105,1720637444872,-243.73,0.00032876,7]
[331685106,1720637444881,-500.0,0.00032876,7]
[331685107,1720637444891,-500.0,0.00032876,7]
[331685108,1720637444900,-500.0,0.00032876,7]
[331685109,1720637444910,-635.92205038,0.00032876,7]
[331685110,1720637445041,-511.07806878,0.00032876,7]
[331685111,1720637445051,-518.20138431,0.00032876,7]
[331685112,1720637445061,-500.0,0.00032876,7]
[331685113,1720637445071,-500.0,0.00032876,7]
[331685114,1720637445080,-1135.89,0.00032876,7]
[331685115,1720637445090,-580.19,0.00032876,7]
[331685116,1720637445099,-541.26377703,0.00032876,7]
[331685117,1720637445108,-203.9096706,0.00032876,7]
[331685118,1720637445117,-1920.57,0.00032876,7]
[331685119,1720637445127,-500.0,0.00032876,7]
[331685120,1720637445135,-500.0,0.00032876,7]
[331685121,1720637445145,-195.66556059,0.00032876,7]
[331685122,1720637445154,-567.63485176,0.00032876,7]
[331685123,1720637445163,-507.65491203,0.00032876,7]
[331685124,1720637445173,-3947.43,0.00032876,7]
[331685125,1720637445182,-500.0,0.00032876,7]
[331685126,1720637445191,-500.0,0.00032876,7]
[331685127,1720637445200,-500.0,0.00032876,2]
[331685128,1720637445210,-500.0,0.00032876,7]
[331685129,1720637445220,-527.61,0.00032876,7]
[331685130,1720637445230,-500.0,0.00032876,7]
[331685131,1720637445242,-1006.31,0.00032876,7]
[331685132,1720637445251,-500.0,0.00032876,7]
[331685133,1720637445260,-500.0,0.00032876,7]
[331685134,1720637445269,-500.0,0.00032876,7]
[331685135,1720637445278,-500.0,0.00032876,7]
[331685136,1720637445288,-500.0,0.00032876,7]
[331685137,1720637445297,-1517.74,0.00032876,7]
[331685138,1720637445306,-669.15,0.00032876,7]
[331685139,1720637445316,-693.19,0.00032876,7]
[331685140,1720637445325,-500.0,0.00032876,7]
[331685141,1720637445334,-500.0,0.00032876,7]
[331685142,1720637445344,-500.0,0.00032876,7]
[331685143,1720637445353,-500.0,0.00032876,7]
[331685144,1720637445362,-214.75626966,0.00032876,7]
[331685145,1720637445371,-500.0,0.00032876,7]
[331685146,1720637445380,-500.0,0.00032876,7]
[331685147,1720637445389,-827.66,0.00032876,7]
[331685148,1720637445399,-500.0,0.00032876,7]
[331685149,1720637445409,-500.0,0.00032876,7]
[331685150,1720637445418,-500.0,0.00032876,7]
[331685151,1720637445427,-500.0,0.00032876,7]
[331685152,1720637445436,-500.0,0.00032876,7]
[331685153,1720637445446,-500.0,0.00032876,7]
[331685154,1720637445455,-500.0,0.00032876,7]
[331685155,1720637445466,-500.0,0.00032876,7]
[331685156,1720637445476,-500.0,0.00032876,7]
[331685157,1720637445485,-500.0,0.00032876,7]
[331685158,1720637445494,-500.0,0.00032876,7]
[331685159,1720637445503,-500.0,0.00032876,7]
[331685160,1720637445512,-500.0,0.00032876,7]
[331685161,1720637445521,-500.0,0.00032876,7]
[331685162,1720637445530,-622.77832109,0.00032876,7]
[331685163,1720637445540,-500.0,0.00032876,7]
[331685164,1720637445549,-500.0,0.00032876,7]
[331685165,1720637445558,-500.0,0.00032876,7]
[331685166,1720637445567,-500.0,0.00032876,7]
[331685167,1720637445577,-500.0,0.00032876,7]
[331685169,1720637445586,-500.0,0.00032876,7]
[331685170,1720637445595,-522.65825356,0.00032876,7]
[331685171,1720637445605,-1022.44,0.00032876,7]
[331685172,1720637445614,-500.0,0.00032876,7]
[331685173,1720637445623,-500.0,0.00032876,7]
[331685174,1720637445634,-500.0,0.00032876,7]
[331685175,1720637445643,-500.0,0.00032876,7]
[331685176,1720637445653,-500.0,0.00032876,7]
[331685177,1720637445662,-3536.82,0.00032876,7]
[331685178,1720637445671,-888.56,0.00032876,7]
[331685179,1720637445680,-500.0,0.00032876,7]
[331685180,1720637445690,-778.44,0.00032876,7]
[331685181,1720637445700,-1892.42,0.00032876,7]
[331685182,1720637445711,-1500.0,0.00032876,7]
[331685183,1720637445720,-500.0,0.00032876,7]
[331685184,1720637445729,-500.0,0.00032876,7]
[331685185,1720637445739,-500.0,0.00032876,7]
[331685186,1720637445749,-500.0,0.00032876,7]
[331685187,1720637445759,-500.0,0.00032876,7]
[331685188,1720637445769,-1337.04,0.00032876,7]
[331685189,1720637445779,-500.0,0.00032876,7]
[331685190,1720637445788,-500.0,0.00032876,7]
[331685191,1720637445797,-577.11,0.00032876,7]
[331685192,1720637445807,-505.76064157,0.00032876,7]
[331685193,1720637445816,-500.0,0.00032876,7]
[331685194,1720637445825,-507.59370746,0.00032876,7]
[331685195,1720637445834,-500.0,0.00032876,7]
[331685196,1720637445844,-500.0,0.00032876,7]
[331685197,1720637445853,-500.0,0.00032876,7]
[331685198,1720637445862,-741.46,0.00032876,7]
[331685199,1720637445872,-500.0,0.00032876,7]
[331685200,1720637445881,-500.0,0.00032876,7]
[331685201,1720637445890,-503.65426862,0.00032876,7]
[331685202,1720637445899,-500.0,0.00032876,7]
[331685203,1720637445908,-500.0,0.00032876,7]
[331685204,1720637445917,-500.0,0.00032876,7]
[331685205,1720637445926,-513.93,0.00032876,7]
[331685206,1720637445935,-500.0,0.00032876,5]
[331685207,1720637445945,-500.0,0.00032876,5]
[331685208,1720637445954,-500.0,0.00032876,5]
[331685209,1720637445965,-500.0,0.00032876,5]
[331685210,1720637445975,-500.0,0.00032876,5]
[331685211,1720637445984,-500.0,0.00032876,5]
[331685212,1720637445994,-1711.55,0.00032876,7]
[331685213,1720637446003,-500.0,0.00032876,5]
[331685214,1720637446012,-500.0,0.00032876,5]
[331685215,1720637446021,-500.0,0.00032876,5]
[331685216,1720637446030,-500.0,0.00032876,5]
[331685217,1720637446039,-500.0,0.00032876,5]
[331685218,1720637446049,-500.0,0.00032876,7]
[331685219,1720637446058,-500.0,0.00032876,5]
[331685220,1720637446068,-280.19812219,0.00032876,5]
[331685221,1720637446078,-507.95538167,0.00032876,7]
[331685222,1720637446087,-768.65,0.00032876,7]
[331685223,1720637446096,-500.0,0.00032876,7]
[331685224,1720637446106,-500.0,0.00032876,7]
[331685225,1720637446115,-539.25,0.00032876,7]
[331685226,1720637446125,-670.63,0.00032876,7]
[331685227,1720637446135,-3050.74,0.00032876,7]
[331685228,1720637446146,-1185.12,0.00032876,7]
[331685229,1720637446155,-500.0,0.00032876,7]
[331685230,1720637446165,-8927.38,0.00032876,7]
[331685231,1720637446175,-500.0,0.00032876,7]
[331685232,1720637446184,-500.0,0.00032876,7]
[331685233,1720637446193,-524.63147779,0.00032876,7]
[331685234,1720637446203,-618.11,0.00032876,7]
[331685235,1720637446215,-500.0,0.00032876,7]
[331685236,1720637446225,-570.87,0.00032876,7]
[331685237,1720637446235,-500.0,0.00032876,7]
[331685238,1720637446244,-500.0,0.00032876,2]
[331685239,1720637446253,-500.0,0.00032876,7]
[331685240,1720637446263,-500.0,0.00032876,7]
[331685241,1720637446272,-500.0,0.00032876,7]
[331685242,1720637446281,-500.0,0.00032876,7]
[331685243,1720637446290,-500.0,0.00032876,7]
[331685244,1720637446299,-500.0,0.00032876,7]
[331685246,1720637446308,-500.0,0.00032876,7]
[331685247,1720637446317,-500.0,0.00032876,7]
[331685249,1720637446327,-345.5767377,0.00032876,7]
[331685252,1720637446432,-154.4232623,0.00032876,7]
[331685253,1720637446441,-500.0,0.00032876,7]
[331685254,1720637446451,-500.0,0.00032876,7]
[331685255,1720637446462,-500.0,0.00032876,7]
[331685256,1720637446471,-500.0,0.00032876,7]
[331685257,1720637446480,-500.0,0.00032876,7]
[331685258,1720637446489,-500.0,0.00032876,7]
[331685259,1720637446499,-500.0,0.00032876,7]
[331685260,1720637446507,-500.0,0.00032876,7]
[331685261,1720637446517,-323.06286234,0.00032876,7]
[331685262,1720637446526,-500.0,0.00032876,7]
[331685263,1720637446535,-500.0,0.00032876,7]
[331685264,1720637446544,-500.0,0.00032876,7]
[331685265,1720637446552,-335.99138401,0.00032876,7]
[331685266,1720637446562,-500.0,0.00032876,7]
[331685267,1720637446570,-501.72488753,0.00032876,2]
[331685268,1720637446580,-500.0,0.00032876,7]
[331685269,1720637446590,-500.0,0.00032876,7]
[331685270,1720637446599,-500.0,0.00032876,2]
[331685271,1720637446610,-600.0,0.00032928,2]
[331685272,1720637446619,-280.52091117,0.0003295,4]
[331685273,1720637446628,-154.83806341,0.0003295,4]
[331685274,1720637446637,-151.0,0.00032958,5]
[331685275,1720637446646,-2299.40583462,0.00033,5]
[331685276,1720637446655,-7.60004274,0.0003315,7]
[331685288,1720637447923,-500.0,0.00032876,7]
[331685290,1720637447932,-75.9,0.0003315,7]
[331685292,1720637447944,-405.18396862,0.0003315,7]
[331685294,1720637447953,-500.0,0.0003315,7]
[331685295,1720637447964,-554.25,0.0003315,7]
[331685296,1720637447973,-500.0,0.0003315,7]
[331685297,1720637447982,-500.0,0.0003315,7]
[331685298,1720637447992,-500.0,0.0003315,7]
[331685299,1720637448001,-1757.14,0.0003315,4]
[331685300,1720637448010,-500.0,0.0003315,2]
[331685301,1720637448019,-562.97,0.0003315,7]
[331685302,1720637448028,-500.0,0.0003315,7]
[331685303,1720637448037,-525.52187844,0.0003315,7]
[331685304,1720637448046,-522.47918448,0.0003315,7]
[331685305,1720637448055,-500.0,0.0003315,7]
[331685306,1720637448066,-500.0,0.0003315,7]
[331685307,1720637448075,-129.24861132,0.0003315,7]
[331685308,1720637448095,-240.12803383,0.00029904,2]
[331685309,1720637448105,-370.75138868,0.0003315,7]
[331685310,1720637448114,-500.0,0.0003315,7]
[331685311,1720637448123,-500.0,0.0003315,7]
[331685312,1720637448132,-500.0,0.0003315,7]
[331685313,1720637448141,-1135.89,0.0003315,7]
[331685314,1720637448150,-580.19,0.0003315,7]
[331685315,1720637448158,-1920.57,0.0003315,7]
[331685316,1720637448167,-182.74058783,0.0003315,7]
[331685317,1720637448176,-500.0,0.0003315,7]
[331685318,1720637448185,-3947.43,0.0003315,7]
[331685319,1720637448194,-500.0,0.0003315,7]
[331685320,1720637448203,-500.0,0.0003315,7]
[331685321,1720637448212,-500.0,0.0003315,2]
[331685322,1720637448222,-500.0,0.0003315,7]
[331685323,1720637448232,-527.61,0.0003315,7]
[331685324,1720637448242,-491.79553907,0.0003315,7]
[331685325,1720637448251,-1006.31,0.0003315,7]
[331685326,1720637448262,-167.93072644,0.0003315,7]
[331685327,1720637448272,-500.0,0.0003315,7]
[331685328,1720637448281,-500.0,0.0003315,7]
[331685329,1720637448290,-500.0,0.0003315,7]
[331685330,1720637448299,-500.0,0.0003315,7]
[331685331,1720637448308,-1517.74,0.0003315,7]
[331685332,1720637448317,-669.15,0.0003315,7]
[331685333,1720637448327,-693.19,0.0003315,7]
[331685334,1720637448335,-500.0,0.0003315,7]
[331685335,1720637448345,-494.06620847,0.0003315,7]
[331685336,1720637448355,-500.0,0.0003315,7]
[331685337,1720637448364,-500.0,0.0003315,7]
[331685338,1720637448374,-483.05671873,0.0003315,7]
[331685339,1720637448383,-500.0,0.0003315,7]
[331685340,1720637448393,-827.66,0.0003315,7]
[331685341,1720637448402,-500.0,0.0003315,7]
[331685342,1720637448411,-500.0,0.0003315,7]
[331685343,1720637448420,-500.0,0.0003315,7]
[331685344,1720637448429,-500.0,0.0003315,7]
[331685345,1720637448438,-500.0,0.0003315,7]
[331685346,1720637448447,-500.0,0.0003315,7]
[331685347,1720637448456,-500.0,0.0003315,7]
[331685348,1720637448466,-500.0,0.0003315,7]
[331685349,1720637448475,-500.0,0.0003315,7]
[331685350,1720637448485,-500.0,0.0003315,7]
[331685351,1720637448494,-500.0,0.0003315,7]
[331685352,1720637448503,-1022.44,0.0003315,7]
[331685353,1720637448512,-500.0,0.0003315,7]
[331685354,1720637448521,-500.0,0.0003315,7]
[331685355,1720637448530,-500.0,0.0003315,7]
[331685356,1720637448539,-500.0,0.0003315,7]
[331685357,1720637448548,-500.0,0.0003315,7]
[331685358,1720637448557,-3536.82,0.0003315,7]
[331685359,1720637448566,-888.56,0.0003315,7]
[331685360,1720637448575,-500.0,0.0003315,7]
[331685361,1720637448584,-778.44,0.0003315,7]
[331685362,1720637448593,-1892.42,0.0003315,7]
[331685363,1720637448602,-1500.0,0.0003315,7]
[331685364,1720637448611,-500.0,0.0003315,7]
[331685365,1720637448621,-423.54628194,0.0003315,7]
[331685366,1720637448630,-233.31911152,0.0003315,7]
[331685367,1720637448640,-500.0,0.0003315,7]
[331685368,1720637448650,-1337.04,0.0003315,7]
[331685369,1720637448659,-500.0,0.0003315,7]
[331685370,1720637448668,-500.0,0.0003315,7]
[331685371,1720637448678,-577.11,0.0003315,7]
[331685372,1720637448687,-500.0,0.0003315,7]
[331685373,1720637448697,-500.0,0.0003315,7]
[331685374,1720637448706,-741.46,0.0003315,7]
[331685375,1720637448718,-500.0,0.0003315,7]
[331685376,1720637448727,-190.35,0.0003315,7]
[331685377,1720637448838,-500.0,0.0003315,7]
[331685378,1720637448847,-500.0,0.0003315,7]
[331685379,1720637448857,-379.0047846,0.0003315,7]
[331685380,1720637448866,-513.93,0.0003315,7]
[331685381,1720637448875,-1711.55,0.0003315,7]
[331685382,1720637448885,-500.0,0.0003315,7]
[331685383,1720637448894,-768.65,0.0003315,7]
[331685384,1720637448904,-548.91075678,0.0003315,7]
[331685385,1720637448914,-500.0,0.0003315,7]
[331685386,1720637448923,-539.25,0.0003315,7]
[331685387,1720637448932,-670.63,0.0003315,7]
[331685388,1720637448944,-3050.74,0.0003315,7]
[331685389,1720637448953,-1185.12,0.0003315,7]
[331685390,1720637448964,-500.0,0.0003315,7]
[331685391,1720637448973,-8927.38,0.0003315,7]
[331685392,1720637448982,-245.48,0.0003315,7]
[331685393,1720637448992,-618.11,0.0003315,7]
[331685394,1720637449002,-500.0,0.0003315,7]
[331685395,1720637449011,-570.87,0.0003315,7]
[331685396,1720637449020,-529.86589719,0.0003315,7]
[331685397,1720637449029,-500.0006609,0.0003315,7]
[331685398,1720637449038,-500.0,0.0003315,2]
[331685399,1720637449047,-500.0,0.0003315,7]
[331685400,1720637449056,-500.0,0.0003315,7]
[331685401,1720637449068,-502.73946256,0.0003315,7]
[331685402,1720637449077,-517.34438674,0.0003315,7]
[331685403,1720637449088,-500.0,0.0003315,7]
[331685404,1720637449097,-500.0,0.0003315,7]
[331685405,1720637449108,-500.0,0.0003315,7]
[331685406,1720637449118,-500.0,0.0003315,2]
[331685407,1720637449128,-151.50895514,0.00033227,2]
[331685408,1720637449140,-366.6405652,0.00033285,2]
[331685409,1720637449150,-155.10844789,0.00033294,4]
[331685410,1720637449160,-161.102542,0.00033295,2]
[331685411,1720637449169,-2836.46925313,0.000334,4]
[331685412,1720637449179,-150.5,0.000334,62]
[331685413,1720637449188,-150.5,0.0003341,62]
[331685414,1720637449197,-5292.88975486,0.0003341,2]
[331685415,1720637449206,-150.5,0.0003342,62]
[331685416,1720637449218,-394.62070984,0.00033424,7]
[331685417,1720637449228,-554.25,0.00033424,7]
[331685418,1720637449239,-500.0,0.00033424,7]
[331685419,1720637449248,-341.42782935,0.00033424,7]
[331685420,1720637449257,-500.0,0.00033424,7]
[331685421,1720637449266,-1757.14,0.00033424,4]
[331685422,1720637449276,-500.0,0.00033424,2]
[331685423,1720637449285,-562.97,0.00033424,7]
[331685424,1720637449294,-159.012451,0.00033424,7]
[331685425,1720637449303,-500.0,0.00033424,7]
[331685426,1720637449313,-500.0,0.00033424,7]
[331685427,1720637449324,-151.0,0.00033424,7]
[331685428,1720637449334,-500.0,0.00033424,7]
[331685429,1720637449343,-500.0,0.00033424,7]
[331685430,1720637449353,-500.0,0.00033424,7]
[331685431,1720637449362,-500.0,0.00033424,7]
[331685432,1720637449371,-1135.89,0.00033424,7]
[331685433,1720637449380,-580.19,0.00033424,7]
[331685434,1720637449389,-1920.57,0.00033424,7]
[331685435,1720637449398,-500.0,0.00033424,7]
[331685436,1720637449407,-3947.43,0.00033424,7]
[331685437,1720637449416,-500.0,0.00033424,7]
[331685438,1720637449425,-500.0,0.00033424,7]
[331685439,1720637449434,-500.0,0.00033424,2]
[331685440,1720637449443,-527.61,0.00033424,7]
[331685441,1720637449452,-1006.31,0.00033424,7]
[331685442,1720637449464,-500.0,0.00033424,7]
[331685443,1720637449472,-500.0,0.00033424,7]
[331685444,1720637449482,-600.93297345,0.00033424,7]
[331685445,1720637449491,-500.0,0.00033424,7]
[331685446,1720637449500,-1517.74,0.00033424,7]
[331685447,1720637449508,-669.15,0.00033424,7]
[331685448,1720637449517,-693.19,0.00033424,7]
[331685449,1720637449527,-500.0,0.00033424,7]
[331685450,1720637449536,-212.85658812,0.00033424,7]
[331685451,1720637449549,-287.14341188,0.00033424,7]
[331685452,1720637449558,-151.0,0.00033424,7]
[331685453,1720637449567,-500.0,0.00033424,7]
[331685454,1720637449577,-356.2909199,0.00033424,7]
[331685486,1720638442150,-179.0028445,0.00021096,2]
[331685487,1720638442170,-161.102542,0.00021096,2]
[331685488,1720638442190,-154.54409492,0.00023966,2]
[331685489,1720638442210,-154.54409492,0.00023966,2]
[331685490,1720638442229,-154.54409492,0.00023966,2]
[331685491,1720638442249,-442.92251104,0.00025,2]
[331685492,1720638442268,-300.0,0.00025037,2]
[331685493,1720638442289,-300.0,0.00025037,2]
[331685494,1720638442310,-3890.50262734,0.00025038,2]
[331685497,1720638559110,-150.0,0.00022938,2]
[331685498,1720638559133,-225.75818488,0.00025038,2]
[331685499,1720638559156,-189.26423783,0.00025038,2]
[331685500,1720638559177,-428.33485551,0.00025038,2]
[331685501,1720638559197,-2000.0,0.00025038,2]
[331685503,1720638559220,-20999.4973726,0.00025375,2]
[331685504,1720638559244,-38083.11665703,0.00025501,2]
[331685505,1720638559265,-29694.98318469,0.00025869,2]
[331685506,1720638574126,-191.04644475,0.00020996,2]
[331685507,1720638574148,-312.15335566,0.00025038,2]
[331685508,1720638574169,-305.01681531,0.00025869,2]
[331685509,1720638574190,-139.7581515,0.00025902,2]
[331685546,1720638633649,-1730.78428776,0.00025401,2]
[331685549,1720638633659,-16459.48727866,0.00025501,2]
[331685714,1720638639099,-11604.21086449,0.00025501,2]
[331685716,1720638639112,-1936.30185685,0.00025501,2]
[331685718,1720638639122,-1105.86744094,0.00025501,2]
[331685720,1720638639132,-911.68921654,0.00025769,2]
[331685721,1720638639142,-953.04201173,0.00026848,2]
[331685722,1720638639152,-291.20149336,0.00027084,2]
[331685723,1720638639162,-168.3634128,0.00027123,2]
[331685724,1720638639172,-179.09,0.00027155,3]
[331685725,1720638639182,-537.3,0.00027164,3]
[331685726,1720638639192,-4851.91731566,0.00027165,3]
[331685727,1720638639205,-103.59268434,0.00027165,3]
[331685728,1720638639215,-478.82485405,0.00027174,3]
[331685729,1720638639228,-81047.22931755,0.00027174,3]
[331685730,1720638639238,-911.68921648,0.00027507,2]
[331685731,1720638639247,-150.0,0.00027938,2]
[331685732,1720638639257,-229.31696231,0.00028,30]
[331685733,1720638639268,-503.64031218,0.00028,2]
[331685734,1720638639278,-161.102542,0.00028339,2]
[331685735,1720638639288,-291.20149336,0.00028507,2]
[331685736,1720638639298,-358.18,0.00028525,3]
[331685738,1720638639308,-252.40548947,0.000288,2]
[331685739,1720638639318,-453.22022894,0.00029,2]
[331685740,1720638639327,-1000.0,0.00029,29]
[331685741,1720638639337,-911.68921648,0.00029244,2]
[331685742,1720638639347,-19424.96642795,0.00029793,2]